{"text_format":"1","workbook":"xlsx","n_sheets":2,"sheets":["参加申込書","メンバー提出用紙"],"not_rendered":{"charts":0,"images":1,"macros":0,"external_links":0,"defined_names":1,"comments":0,"pivot_tables":0},"unopened":[],"bounds":{"document_bytes":16777216,"sheet_cells":100000,"rows_first":2000,"rows_last":500,"rows_between":2000,"halvings":0,"cell_chars":16384,"cell_head_chars":4096},"cells_cut":0,"cells_raw":0,"read":"whole","date_system":"1900"}

{"sheet":"参加申込書","index":0,"n_rows":29,"n_cols":232,"rows_kept":29,"cut":false,"hidden":false,"merged":[[23,41,23,42],[18,41,18,42],[19,41,19,42],[20,41,20,42],[21,41,21,42],[22,39,22,40],[23,39,23,40],[17,39,17,40],[2,1,2,11],[2,12,2,38],[5,5,5,18],[5,27,5,34],[6,27,6,34],[18,27,18,34],[17,27,17,34],[18,14,18,20],[17,1,17,5],[18,1,18,5],[2,40,2,45],[17,6,17,13],[18,6,18,13],[5,41,5,42],[6,41,6,42],[7,41,7,42],[8,41,8,42],[9,41,9,42],[10,41,10,42],[13,41,13,42],[14,41,14,42],[15,41,15,42],[6,39,6,40],[15,27,15,34],[15,14,15,20],[9,9,9,10],[15,1,15,5],[6,1,6,4],[7,1,7,5],[9,12,9,19],[13,31,13,34],[14,39,14,40],[15,39,15,40],[10,2,10,5],[10,6,10,21],[12,10,12,13],[17,21,17,26],[18,21,18,26],[5,19,5,23],[13,14,13,17],[15,21,15,26],[12,27,12,30],[7,18,7,21],[9,22,9,25],[10,22,10,25],[11,22,13,22],[7,22,7,34],[8,6,8,17],[8,1,8,5],[9,1,9,5],[9,6,9,7],[5,1,5,4],[5,24,5,26],[6,24,6,26],[6,5,6,18],[11,10,11,13],[11,18,11,21],[11,23,11,26],[21,39,21,40],[19,27,19,34],[18,39,18,40],[19,39,19,40],[19,14,19,20],[19,6,19,13],[14,1,14,34],[13,7,13,8],[11,9,13,9],[12,23,12,26],[11,27,11,30],[11,31,11,34],[11,1,13,6],[12,31,12,34],[12,7,12,8],[21,1,21,5],[21,6,21,13],[21,14,21,20],[21,21,21,26],[13,23,13,26],[13,18,13,21],[21,27,21,34],[25,41,25,42],[24,39,24,40],[22,41,22,42],[25,39,25,40],[16,1,16,5],[16,6,16,13],[12,14,12,17],[19,21,19,26],[13,27,13,30],[16,14,16,20],[16,21,16,26],[15,6,15,13],[19,1,19,5],[16,27,16,34],[12,18,12,21],[13,10,13,13],[12,39,12,40],[12,41,12,42],[20,1,20,5],[20,6,20,13],[20,14,20,20],[20,21,20,26],[20,27,20,34],[28,52,28,54],[28,40,29,41],[28,48,29,49],[28,42,29,42],[28,43,29,46],[27,43,27,46],[13,47,13,48],[14,47,14,48],[24,47,24,48],[22,47,22,48],[20,39,20,40],[15,47,15,48],[16,47,16,48],[17,41,17,42],[17,47,17,48],[18,47,18,48],[25,47,25,48],[19,47,19,48],[20,47,20,48],[21,47,21,48],[23,47,23,48],[16,41,16,42],[24,41,24,42],[16,39,16,40],[5,46,5,48],[17,14,17,20],[6,47,6,48],[9,20,9,21],[11,14,11,17],[9,26,9,34],[7,47,7,48],[13,39,13,40],[8,47,8,48],[9,47,9,48],[7,6,7,17],[10,26,10,34],[8,18,8,21],[8,22,8,34],[12,47,12,48],[10,39,10,40],[11,39,11,40],[11,41,11,42],[11,47,11,48],[10,47,10,48],[5,39,5,40],[7,39,7,40],[8,39,8,40],[9,39,9,40]]}
[]
[]
[null,"　参加申込書(大会名)　　　　　　　　",null,null,null,null,null,null,null,null,null,null,"ＳＦＡ第９回全日本女子ユース（Ｕ－１５）フットサル大会　佐賀県大会",null,null,null,null,null,null,null,null,null,null,null,null,null,null,null,null,null,null,null,null,null,null,null,null,null,null,null,"（メンバー提出用紙と連動しています(記入不要)。）",null,null,null,null,null,null,null,null,"該当者に〇"]
[]
[]
[null,"フリガナ",null,null,null,null,null,null,null,null,null,null,null,null,null,null,null,null,null,"チーム名略称\n(5文字以内)",null,null,null,null,"フリガナ",null,null,null,null,null,null,null,null,null,null,null,"No.","背番号","Pos","名　　　　　　前",null," フリガナ",null,"身長","体重","生年月日\n(YYYY/MM/DD)　","サッカー・フットサル登録番号",null,null,"外国籍"]
[null,"チーム名",null,null,null,null,null,null,null,null,null,null,null,null,null,null,null,null,null,null,null,null,null,null,"代表者名",null,null,null,null,null,null,null,null,null,null,null,1,null,null,null,null,null,null,null,null,null,null,null,null,null,null,null,null,null,null,null,null,null,null,null,null,null,null,null,null,null,null,null,null,null,null,null,null,null,null,null,null,null,null,null,null,null,null,null,null,null,null,null,null,null,null,null,null,null,null,null,null,null,null,null,null,null,null,null,null,null,null,null,null,null,null,null,null,null,null,null,null,null,null,null,null,null,null,null,null,null,null,null,null,null,null,null,null,null,null,null,null,null,null,null,null,null,null,null,null,null,null,null,null,null,null,null,null,null,null,null,null,null,null,null,null,null,null,null,null,null,null,null,null,null,null,null,null,null,null,null,null,null,null,null,null,null,null,null,null,null,null,null,null,null,null,null,null,null,null,null,null,null,null,null,null,null,null,null,null,null,null,null,null,null,null,null,null,null,null,null,null,null,null,null,null,null,null,null,null,null,null,null,{"$f":"TRIM(AM7)& \"　\"&TRIM(AN7)","v":"　"},{"$f":"ASC(TRIM(AO7)&\" \"&TRIM(AP7))","v":" "},{"$f":"IF(AS7 =\"\",\"\",AS7)","v":""},{"$f":"IF(AV7=\"\",\"\",AV7)","v":""}]
[null,"フリガナ",null,null,null,null,null,null,null,null,null,null,null,null,null,null,null,null,"携帯電話",null,null,null,null,null,null,null,null,null,null,null,null,null,null,null,null,null,2,null,null,null,null,null,null,null,null,null,null,null,null,null,null,null,null,null,null,null,null,null,null,null,null,null,null,null,null,null,null,null,null,null,null,null,null,null,null,null,null,null,null,null,null,null,null,null,null,null,null,null,null,null,null,null,null,null,null,null,null,null,null,null,null,null,null,null,null,null,null,null,null,null,null,null,null,null,null,null,null,null,null,null,null,null,null,null,null,null,null,null,null,null,null,null,null,null,null,null,null,null,null,null,null,null,null,null,null,null,null,null,null,null,null,null,null,null,null,null,null,null,null,null,null,null,null,null,null,null,null,null,null,null,null,null,null,null,null,null,null,null,null,null,null,null,null,null,null,null,null,null,null,null,null,null,null,null,null,null,null,null,null,null,null,null,null,null,null,null,null,null,null,null,null,null,null,null,null,null,null,null,null,null,null,null,null,null,null,null,null,null,"　"," ","",""]
[null,"連絡責任者名",null,null,null,null,null,null,null,null,null,null,null,null,null,null,null,null,"E-mail",null,null,null,null,null,null,null,null,null,null,null,null,null,null,null,null,null,3,null,null,null,null,null,null,null,null,null,null,null,null,null,null,null,null,null,null,null,null,null,null,null,null,null,null,null,null,null,null,null,null,null,null,null,null,null,null,null,null,null,null,null,null,null,null,null,null,null,null,null,null,null,null,null,null,null,null,null,null,null,null,null,null,null,null,null,null,null,null,null,null,null,null,null,null,null,null,null,null,null,null,null,null,null,null,null,null,null,null,null,null,null,null,null,null,null,null,null,null,null,null,null,null,null,null,null,null,null,null,null,null,null,null,null,null,null,null,null,null,null,null,null,null,null,null,null,null,null,null,null,null,null,null,null,null,null,null,null,null,null,null,null,null,null,null,null,null,null,null,null,null,null,null,null,null,null,null,null,null,null,null,null,null,null,null,null,null,null,null,null,null,null,null,null,null,null,null,null,null,null,null,null,null,null,null,null,null,null,null,null,"　"," ","",""]
[null,"連絡先\nどちらかに○",null,null,null,null,"自宅",null,"・","勤務先",null,"（",null,null,null,null,null,null,null,null,"）",null,"ＴＥＬ",null,null,null,"",null,null,null,null,null,null,null,null,null,4,null,null,null,null,null,null,null,null,null,null,null,null,null,null,null,null,null,null,null,null,null,null,null,null,null,null,null,null,null,null,null,null,null,null,null,null,null,null,null,null,null,null,null,null,null,null,null,null,null,null,null,null,null,null,null,null,null,null,null,null,null,null,null,null,null,null,null,null,null,null,null,null,null,null,null,null,null,null,null,null,null,null,null,null,null,null,null,null,null,null,null,null,null,null,null,null,null,null,null,null,null,null,null,null,null,null,null,null,null,null,null,null,null,null,null,null,null,null,null,null,null,null,null,null,null,null,null,null,null,null,null,null,null,null,null,null,null,null,null,null,null,null,null,null,null,null,null,null,null,null,null,null,null,null,null,null,null,null,null,null,null,null,null,null,null,null,null,null,null,null,null,null,null,null,null,null,null,null,null,null,null,null,null,null,null,null,null,null,null,null,null,"　"," ","",""]
[null,"〒",null,null,null,null,null,null,null,null,null,null,null,null,null,null,null,null,null,null,null,null,"ＦＡＸ",null,null,null,null,null,null,null,null,null,null,null,null,null,5,null,null,null,null,null,null,null,null,null,null,null,null,null,null,null,null,null,null,null,null,null,null,null,null,null,null,null,null,null,null,null,null,null,null,null,null,null,null,null,null,null,null,null,null,null,null,null,null,null,null,null,null,null,null,null,null,null,null,null,null,null,null,null,null,null,null,null,null,null,null,null,null,null,null,null,null,null,null,null,null,null,null,null,null,null,null,null,null,null,null,null,null,null,null,null,null,null,null,null,null,null,null,null,null,null,null,null,null,null,null,null,null,null,null,null,null,null,null,null,null,null,null,null,null,null,null,null,null,null,null,null,null,null,null,null,null,null,null,null,null,null,null,null,null,null,null,null,null,null,null,null,null,null,null,null,null,null,null,null,null,null,null,null,null,null,null,null,null,null,null,null,null,null,null,null,null,null,null,null,null,null,null,null,null,null,null,null,null,null,null,null,"　"," ","",""]
[null,"ユニフォームの色",null,null,null,null,null,null,null,"Ｆ　Ｐ","シャツ",null,null,null,"ショーツ",null,null,null,"ｽﾄｯｷﾝｸﾞ",null,null,null,"Ｇ　Ｋ","シャツ",null,null,null,"ショーツ",null,null,null,"ｽﾄｯｷﾝｸﾞ",null,null,null,null,6,null,null,null,null,null,null,null,null,null,null,null,null,null,null,null,null,null,null,null,null,null,null,null,null,null,null,null,null,null,null,null,null,null,null,null,null,null,null,null,null,null,null,null,null,null,null,null,null,null,null,null,null,null,null,null,null,null,null,null,null,null,null,null,null,null,null,null,null,null,null,null,null,null,null,null,null,null,null,null,null,null,null,null,null,null,null,null,null,null,null,null,null,null,null,null,null,null,null,null,null,null,null,null,null,null,null,null,null,null,null,null,null,null,null,null,null,null,null,null,null,null,null,null,null,null,null,null,null,null,null,null,null,null,null,null,null,null,null,null,null,null,null,null,null,null,null,null,null,null,null,null,null,null,null,null,null,null,null,null,null,null,null,null,null,null,null,null,null,null,null,null,null,null,null,null,null,null,null,null,null,null,null,null,null,null,null,null,null,null,null,null,"　"," ","",""]
[null,null,null,null,null,null,null,"〔正〕",null,null,null,null,null,null,"",null,null,null,null,null,null,null,null,"",null,null,null,null,null,null,null,"",null,null,null,null,7,null,null,null,null,null,null,null,null,null,null,null,null,null,null,null,null,null,null,null,null,null,null,null,null,null,null,null,null,null,null,null,null,null,null,null,null,null,null,null,null,null,null,null,null,null,null,null,null,null,null,null,null,null,null,null,null,null,null,null,null,null,null,null,null,null,null,null,null,null,null,null,null,null,null,null,null,null,null,null,null,null,null,null,null,null,null,null,null,null,null,null,null,null,null,null,null,null,null,null,null,null,null,null,null,null,null,null,null,null,null,null,null,null,null,null,null,null,null,null,null,null,null,null,null,null,null,null,null,null,null,null,null,null,null,null,null,null,null,null,null,null,null,null,null,null,null,null,null,null,null,null,null,null,null,null,null,null,null,null,null,null,null,null,null,null,null,null,null,null,null,null,null,null,null,null,null,null,null,null,null,null,null,null,null,null,null,null,null,null,null,null,"　"," ","",""]
[null,null,null,null,null,null,null,"〔副〕",null,null,null,null,null,null,"",null,null,null,null,null,null,null,null,null,null,null,null,null,null,null,null,null,null,null,null,null,8,null,null,null,null,null,null,null,null,null,null,null,null,null,null,null,null,null,null,null,null,null,null,null,null,null,null,null,null,null,null,null,null,null,null,null,null,null,null,null,null,null,null,null,null,null,null,null,null,null,null,null,null,null,null,null,null,null,null,null,null,null,null,null,null,null,null,null,null,null,null,null,null,null,null,null,null,null,null,null,null,null,null,null,null,null,null,null,null,null,null,null,null,null,null,null,null,null,null,null,null,null,null,null,null,null,null,null,null,null,null,null,null,null,null,null,null,null,null,null,null,null,null,null,null,null,null,null,null,null,null,null,null,null,null,null,null,null,null,null,null,null,null,null,null,null,null,null,null,null,null,null,null,null,null,null,null,null,null,null,null,null,null,null,null,null,null,null,null,null,null,null,null,null,null,null,null,null,null,null,null,null,null,null,null,null,null,null,null,null,null,null,"　"," ","",""]
[null,"チーム役員（以下記載の役員のみベンチ入り可能）",null,null,null,null,null,null,null,null,null,null,null,null,null,null,null,null,null,null,null,null,null,null,null,null,null,null,null,null,null,null,null,null,null,null,9,null,null,null,null,null,null,null,null,null,null,null,null,null,null,null,null,null,null,null,null,null,null,null,null,null,null,null,null,null,null,null,null,null,null,null,null,null,null,null,null,null,null,null,null,null,null,null,null,null,null,null,null,null,null,null,null,null,null,null,null,null,null,null,null,null,null,null,null,null,null,null,null,null,null,null,null,null,null,null,null,null,null,null,null,null,null,null,null,null,null,null,null,null,null,null,null,null,null,null,null,null,null,null,null,null,null,null,null,null,null,null,null,null,null,null,null,null,null,null,null,null,null,null,null,null,null,null,null,null,null,null,null,null,null,null,null,null,null,null,null,null,null,null,null,null,null,null,null,null,null,null,null,null,null,null,null,null,null,null,null,null,null,null,null,null,null,null,null,null,null,null,null,null,null,null,null,null,null,null,null,null,null,null,null,null,null,null,null,null,null,null,"　"," ","",""]
[null,"チーム役職",null,null,null,null,"役 員 氏 名",null,null,null,null,null,null,null,"フ リ ガ ナ",null,null,null,null,null,null,"　生 年 月 日　",null,null,null,null,null,"連 絡 先 Ｔ Ｅ Ｌ",null,null,null,null,null,null,null,null,10,null,null,null,null,null,null,null,null,null,null,null,null,null,null,null,null,null,null,null,null,null,null,null,null,null,null,null,null,null,null,null,null,null,null,null,null,null,null,null,null,null,null,null,null,null,null,null,null,null,null,null,null,null,null,null,null,null,null,null,null,null,null,null,null,null,null,null,null,null,null,null,null,null,null,null,null,null,null,null,null,null,null,null,null,null,null,null,null,null,null,null,null,null,null,null,null,null,null,null,null,null,null,null,null,null,null,null,null,null,null,null,null,null,null,null,null,null,null,null,null,null,null,null,null,null,null,null,null,null,null,null,null,null,null,null,null,null,null,null,null,null,null,null,null,null,null,null,null,null,null,null,null,null,null,null,null,null,null,null,null,null,null,null,null,null,null,null,null,null,null,null,null,null,null,null,null,null,null,null,null,null,null,null,null,null,null,null,null,null,null,null,"　"," ","",""]
[null,null,null,null,null,null,null,null,null,null,null,null,null,null,null,null,null,null,null,null,null,null,null,null,null,null,null,null,null,null,null,null,null,null,null,null,11,null,null,null,null,null,null,null,null,null,null,null,null,null,null,null,null,null,null,null,null,null,null,null,null,null,null,null,null,null,null,null,null,null,null,null,null,null,null,null,null,null,null,null,null,null,null,null,null,null,null,null,null,null,null,null,null,null,null,null,null,null,null,null,null,null,null,null,null,null,null,null,null,null,null,null,null,null,null,null,null,null,null,null,null,null,null,null,null,null,null,null,null,null,null,null,null,null,null,null,null,null,null,null,null,null,null,null,null,null,null,null,null,null,null,null,null,null,null,null,null,null,null,null,null,null,null,null,null,null,null,null,null,null,null,null,null,null,null,null,null,null,null,null,null,null,null,null,null,null,null,null,null,null,null,null,null,null,null,null,null,null,null,null,null,null,null,null,null,null,null,null,null,null,null,null,null,null,null,null,null,null,null,null,null,null,null,null,null,null,null,null,"　"," ","",""]
[null,null,null,null,null,null,null,null,null,null,null,null,null,null,null,null,null,null,null,null,null,null,null,null,null,null,null,null,null,null,null,null,null,null,null,null,12,null,null,null,null,null,null,null,null,null,null,null,null,null,null,null,null,null,null,null,null,null,null,null,null,null,null,null,null,null,null,null,null,null,null,null,null,null,null,null,null,null,null,null,null,null,null,null,null,null,null,null,null,null,null,null,null,null,null,null,null,null,null,null,null,null,null,null,null,null,null,null,null,null,null,null,null,null,null,null,null,null,null,null,null,null,null,null,null,null,null,null,null,null,null,null,null,null,null,null,null,null,null,null,null,null,null,null,null,null,null,null,null,null,null,null,null,null,null,null,null,null,null,null,null,null,null,null,null,null,null,null,null,null,null,null,null,null,null,null,null,null,null,null,null,null,null,null,null,null,null,null,null,null,null,null,null,null,null,null,null,null,null,null,null,null,null,null,null,null,null,null,null,null,null,null,null,null,null,null,null,null,null,null,null,null,null,null,null,null,null,null,"　"," ","",""]
[null,null,null,null,null,null,null,null,null,null,null,null,null,null,null,null,null,null,null,null,null,null,null,null,null,null,null,null,null,null,null,null,null,null,null,null,13,null,null,null,null,null,null,null,null,null,null,null,null,null,null,null,null,null,null,null,null,null,null,null,null,null,null,null,null,null,null,null,null,null,null,null,null,null,null,null,null,null,null,null,null,null,null,null,null,null,null,null,null,null,null,null,null,null,null,null,null,null,null,null,null,null,null,null,null,null,null,null,null,null,null,null,null,null,null,null,null,null,null,null,null,null,null,null,null,null,null,null,null,null,null,null,null,null,null,null,null,null,null,null,null,null,null,null,null,null,null,null,null,null,null,null,null,null,null,null,null,null,null,null,null,null,null,null,null,null,null,null,null,null,null,null,null,null,null,null,null,null,null,null,null,null,null,null,null,null,null,null,null,null,null,null,null,null,null,null,null,null,null,null,null,null,null,null,null,null,null,null,null,null,null,null,null,null,null,null,null,null,null,null,null,null,null,null,null,null,null,null,"　"," ","",""]
[null,null,null,null,null,null,null,null,null,null,null,null,null,null,null,null,null,null,null,null,null,null,null,null,null,null,null,null,null,null,null,null,null,null,null,null,14,null,null,null,null,null,null,null,null,null,null,null,null,null,null,null,null,null,null,null,null,null,null,null,null,null,null,null,null,null,null,null,null,null,null,null,null,null,null,null,null,null,null,null,null,null,null,null,null,null,null,null,null,null,null,null,null,null,null,null,null,null,null,null,null,null,null,null,null,null,null,null,null,null,null,null,null,null,null,null,null,null,null,null,null,null,null,null,null,null,null,null,null,null,null,null,null,null,null,null,null,null,null,null,null,null,null,null,null,null,null,null,null,null,null,null,null,null,null,null,null,null,null,null,null,null,null,null,null,null,null,null,null,null,null,null,null,null,null,null,null,null,null,null,null,null,null,null,null,null,null,null,null,null,null,null,null,null,null,null,null,null,null,null,null,null,null,null,null,null,null,null,null,null,null,null,null,null,null,null,null,null,null,null,null,null,null,null,null,null,null,null,"　"," ","",""]
[null,null,null,null,null,null,null,null,null,null,null,null,null,null,null,null,null,null,null,null,null,null,null,null,null,null,null,null,null,null,null,null,null,null,null,null,15,null,null,null,null,null,null,null,null,null,null,null,null,null,null,null,null,null,null,null,null,null,null,null,null,null,null,null,null,null,null,null,null,null,null,null,null,null,null,null,null,null,null,null,null,null,null,null,null,null,null,null,null,null,null,null,null,null,null,null,null,null,null,null,null,null,null,null,null,null,null,null,null,null,null,null,null,null,null,null,null,null,null,null,null,null,null,null,null,null,null,null,null,null,null,null,null,null,null,null,null,null,null,null,null,null,null,null,null,null,null,null,null,null,null,null,null,null,null,null,null,null,null,null,null,null,null,null,null,null,null,null,null,null,null,null,null,null,null,null,null,null,null,null,null,null,null,null,null,null,null,null,null,null,null,null,null,null,null,null,null,null,null,null,null,null,null,null,null,null,null,null,null,null,null,null,null,null,null,null,null,null,null,null,null,null,null,null,null,null,null,null,{"$f":"TRIM(AM26)& \"　\"&TRIM(AN26)","v":"　"},{"$f":"ASC(TRIM(AO26)&\" \"&TRIM(AP26))","v":" "},{"$f":"IF(AS26 =\"\",\"\",AS26)","v":""},{"$f":"IF(AV26=\"\",\"\",AV26)","v":""}]
[null,null,null,null,null,null,null,null,null,null,null,null,null,null,null,null,null,null,null,null,null,null,null,null,null,null,null,null,null,null,null,null,null,null,null,null,16]
[null,null,null,null,null,null,null,null,null,null,null,null,null,null,null,null,null,null,null,null,null,null,null,null,null,null,null,null,null,null,null,null,null,null,null,null,17]
[null,null,null,null,null,null,null,null,null,null,null,null,null,null,null,null,null,null,null,null,null,null,null,null,null,null,null,null,null,null,null,null,null,null,null,null,18]
[null,null,null,null,null,null,null,null,null,null,null,null,null,null,null,null,null,null,null,null,null,null,null,null,null,null,null,null,null,null,null,null,null,null,null,null,19]
[null,null,null,null,null,null,null,null,null,null,null,null,null,null,null,null,null,null,null,null,null,null,null,null,null,null,null,null,null,null,null,null,null,null,null,null,20]
[]
[null,null,null,null,null,null,null,null,null,null,null,null,null,null,null,null,null,null,null,null,null,null,null,null,null,null,null,null,null,null,null,null,null,null,null,null,null,null,null,null,null,null,null,"受付年月日"]
[null,null,null,null,null,null,null,null,null,null,null,null,null,null,null,null,null,null,null,null,null,null,null,null,null,null,null,null,null,null,null,null,null,null,null,null,null,null,null,null,null,null,null,"　　　年　　　　　月　　　　日",null,null,null,null,"印"]

{"sheet":"メンバー提出用紙","index":1,"n_rows":40,"n_cols":17,"rows_kept":40,"cut":false,"hidden":false,"merged":[[36,1,36,2],[36,4,37,18],[37,1,37,2],[0,10,1,14],[0,16,1,16],[34,1,34,2],[34,4,35,5],[34,7,34,10],[34,11,34,14],[34,15,34,18],[35,1,35,2],[35,7,35,10],[35,11,35,14],[35,15,35,18],[32,1,32,2],[32,4,33,5],[32,7,32,10],[32,11,32,14],[32,15,32,18],[33,1,33,2],[33,7,33,10],[33,11,33,14],[33,15,33,18],[29,0,29,1],[29,2,29,18],[30,0,31,0],[30,1,31,2],[30,3,31,3],[30,4,30,18],[31,4,31,6],[31,7,31,10],[31,11,31,14],[31,15,31,18],[27,2,27,3],[27,4,27,6],[27,7,27,10],[27,11,27,14],[27,15,27,18],[28,2,28,3],[28,4,28,6],[28,7,28,10],[28,11,28,14],[28,15,28,18],[25,2,25,3],[25,4,25,6],[25,7,25,10],[25,11,25,14],[25,15,25,18],[26,2,26,3],[26,4,26,6],[26,7,26,10],[26,11,26,14],[26,15,26,18],[23,2,23,3],[23,4,23,6],[23,7,23,10],[23,11,23,14],[23,15,23,18],[24,2,24,3],[24,4,24,6],[24,7,24,10],[24,11,24,14],[24,15,24,18],[21,2,21,3],[21,4,21,6],[21,7,21,10],[21,11,21,14],[21,15,21,18],[22,2,22,3],[22,4,22,6],[22,7,22,10],[22,11,22,14],[22,15,22,18],[19,2,19,3],[19,4,19,6],[19,7,19,10],[19,11,19,14],[19,15,19,18],[20,2,20,3],[20,4,20,6],[20,7,20,10],[20,11,20,14],[20,15,20,18],[17,2,17,3],[17,4,17,6],[17,7,17,10],[17,11,17,14],[17,15,17,18],[18,2,18,3],[18,4,18,6],[18,7,18,10],[18,11,18,14],[18,15,18,18],[15,2,15,3],[15,4,15,6],[15,7,15,10],[15,11,15,14],[15,15,15,18],[16,2,16,3],[16,4,16,6],[16,7,16,10],[16,11,16,14],[16,15,16,18],[13,2,13,3],[13,4,13,6],[13,7,13,10],[13,11,13,14],[13,15,13,18],[14,2,14,3],[14,4,14,6],[14,7,14,10],[14,11,14,14],[14,15,14,18],[11,2,11,3],[11,4,11,6],[11,7,11,10],[11,11,11,14],[11,15,11,18],[12,2,12,3],[12,4,12,6],[12,7,12,10],[12,11,12,14],[12,15,12,18],[9,2,9,3],[9,4,9,6],[9,7,9,10],[9,11,9,14],[9,15,9,18],[10,2,10,3],[10,4,10,6],[10,7,10,10],[10,11,10,14],[10,15,10,18],[6,0,6,1],[6,2,6,10],[7,0,8,0],[7,1,8,1],[7,2,8,6],[7,7,7,18],[8,7,8,10],[8,11,8,14],[8,15,8,18],[0,0,1,2],[2,12,2,18],[3,0,3,1],[3,2,3,10],[3,12,5,18],[4,0,4,1],[4,2,4,10]]}
["メンバー提出用紙",null,null,null,null,null,null,null,null,null,"2018/",null,null,null,null,null,"/"]
[]
[null,null,null,null,null,null,null,null,null,null,null,null,"大会事務局確認印"]
["大会名：",null,{"$f":"参加申込書!M3","v":"ＳＦＡ第９回全日本女子ユース（Ｕ－１５）フットサル大会　佐賀県大会"}]
["会場名："]
[]
["チーム名：",null,{"$f":"参加申込書!F7","v":0}]
["背番号","Pos.","選　手　名\nフルネーム               フリガナ",null,null,null,null,"試合登録（１４名以内）"]
[null,null,null,null,null,null,null,"先発選手",null,null,null,"交代要員",null,null,null,"登録しない\n選手"]
[{"$f":"参加申込書!AL7","v":0},{"$f":"参加申込書!AM7","v":0},{"$f":"参加申込書!AN7","v":0},null,{"$f":"参加申込書!AP7","v":0}]
[{"$f":"参加申込書!AL8","v":0},{"$f":"参加申込書!AM8","v":0},{"$f":"参加申込書!AN8","v":0},null,{"$f":"参加申込書!AP8","v":0}]
[{"$f":"参加申込書!AL9","v":0},{"$f":"参加申込書!AM9","v":0},{"$f":"参加申込書!AN9","v":0},null,{"$f":"参加申込書!AP9","v":0}]
[{"$f":"参加申込書!AL10","v":0},{"$f":"参加申込書!AM10","v":0},{"$f":"参加申込書!AN10","v":0},null,{"$f":"参加申込書!AP10","v":0}]
[{"$f":"参加申込書!AL11","v":0},{"$f":"参加申込書!AM11","v":0},{"$f":"参加申込書!AN11","v":0},null,{"$f":"参加申込書!AP11","v":0}]
[{"$f":"参加申込書!AL12","v":0},{"$f":"参加申込書!AM12","v":0},{"$f":"参加申込書!AN12","v":0},null,{"$f":"参加申込書!AP12","v":0}]
[{"$f":"参加申込書!AL13","v":0},{"$f":"参加申込書!AM13","v":0},{"$f":"参加申込書!AN13","v":0},null,{"$f":"参加申込書!AP13","v":0}]
[{"$f":"参加申込書!AL14","v":0},{"$f":"参加申込書!AM14","v":0},{"$f":"参加申込書!AN14","v":0},null,{"$f":"参加申込書!AP14","v":0}]
[{"$f":"参加申込書!AL15","v":0},{"$f":"参加申込書!AM15","v":0},{"$f":"参加申込書!AN15","v":0},null,{"$f":"参加申込書!AP15","v":0}]
[{"$f":"参加申込書!AL16","v":0},{"$f":"参加申込書!AM16","v":0},{"$f":"参加申込書!AN16","v":0},null,{"$f":"参加申込書!AP16","v":0}]
[{"$f":"参加申込書!AL17","v":0},{"$f":"参加申込書!AM17","v":0},{"$f":"参加申込書!AN17","v":0},null,{"$f":"参加申込書!AP17","v":0}]
[{"$f":"参加申込書!AL18","v":0},{"$f":"参加申込書!AM18","v":0},{"$f":"参加申込書!AN18","v":0},null,{"$f":"参加申込書!AP18","v":0}]
[{"$f":"参加申込書!AL19","v":0},{"$f":"参加申込書!AM19","v":0},{"$f":"参加申込書!AN19","v":0},null,{"$f":"参加申込書!AP19","v":0}]
[{"$f":"参加申込書!AL20","v":0},{"$f":"参加申込書!AM20","v":0},{"$f":"参加申込書!AN20","v":0},null,{"$f":"参加申込書!AP20","v":0}]
[{"$f":"参加申込書!AL21","v":0},{"$f":"参加申込書!AM21","v":0},{"$f":"参加申込書!AN21","v":0},null,{"$f":"参加申込書!AP21","v":0}]
[{"$f":"参加申込書!AL22","v":0},{"$f":"参加申込書!AM22","v":0},{"$f":"参加申込書!AN22","v":0},null,{"$f":"参加申込書!AP22","v":0}]
[{"$f":"参加申込書!AL23","v":0},{"$f":"参加申込書!AM23","v":0},{"$f":"参加申込書!AN23","v":0},null,{"$f":"参加申込書!AP23","v":0}]
[{"$f":"参加申込書!AL24","v":0},{"$f":"参加申込書!AM24","v":0},{"$f":"参加申込書!AN24","v":0},null,{"$f":"参加申込書!AP24","v":0}]
[{"$f":"参加申込書!AL25","v":0},{"$f":"参加申込書!AM25","v":0},{"$f":"参加申込書!AN25","v":0},null,{"$f":"参加申込書!AP25","v":0}]
[{"$f":"参加申込書!AL26","v":0},{"$f":"参加申込書!AM26","v":0},{"$f":"参加申込書!AN26","v":0},null,{"$f":"参加申込書!AP26","v":0}]
["キャプテン：（○）",null,"先発選手:( ○ )　  交代要員:( ／ )　  試合登録しない選手:（ × ）"]
["役 職","名　前",null,"3名\n以内\nに○","ユニフォーム色 （○で囲む）"]
[null,null,null,null,"ポジション",null,null,"シャツ",null,null,null,"ショーツ",null,null,null,"ストッキング"]
[{"$f":"参加申込書!B17","v":0},{"$f":"参加申込書!G17","v":0},null,null,"フィールドプレーヤー",null,"正",{"$f":"参加申込書!K13","v":0},null,null,null,{"$f":"参加申込書!O13","v":""},null,null,null,{"$f":"参加申込書!S13","v":0}]
[{"$f":"参加申込書!B18","v":0},{"$f":"参加申込書!G18","v":0},null,null,null,null,"副",{"$f":"参加申込書!K14","v":0},null,null,null,{"$f":"参加申込書!O14","v":""},null,null,null,{"$f":"参加申込書!S14","v":0}]
[{"$f":"参加申込書!B19","v":0},{"$f":"参加申込書!G19","v":0},null,null,"ゴールキーパー",null,"正",{"$f":"参加申込書!X13","v":""},null,null,null,{"$f":"参加申込書!AB13","v":0},null,null,null,{"$f":"参加申込書!AF13","v":""}]
[{"$f":"参加申込書!B20","v":0},{"$f":"参加申込書!G20","v":0},null,null,null,null,"副",{"$f":"参加申込書!X14","v":0},null,null,null,{"$f":"参加申込書!AB14","v":0},null,null,null,{"$f":"参加申込書!AF14","v":0}]
[{"$f":"参加申込書!B21","v":0},{"$f":"参加申込書!G21","v":0},null,null,"監督署名:"]
[{"$f":"参加申込書!B22","v":0},{"$f":"参加申込書!G22","v":0}]
[]
[null,null,null,"対戦相手："]